{"text_format":"3","workbook":"xlsx","n_sheets":1,"sheets":["Folha de Horas Anuais"],"not_rendered":{"defined_names":2},"read":"whole","date_system":"1900"}

{"sheet":"Folha de Horas Anuais","index":0,"n_rows":140,"n_cols":12,"rows_kept":140,"merged":[[0,1,1,11],[2,6,2,7],[2,8,2,9],[5,1,5,11],[39,1,39,11],[73,1,73,11],[107,1,107,11]]}
[null,"Folha de Ponto de Colaboradores"]
[]
[null,"Nome do Colaborador:",null,"E-mail:",null,null,"Totais do início do ano até à data:"]
[null,"Gestor:",null,"Telefone:",null,null,"Horas de Expediente:",{"$f":"SUM(C16,C27,C38,C50,C61,C72,C84,C95,C106,C118,C129,C140)","v":0},"Horas Extraordinárias:",{"$f":"SUM(F16,F27,F38,F50,F61,F72,F84,F95,F106,F118,F129,F140)","v":0},"Total:",{"$f":"SUM(H4:J4)","v":0}]
[]
[null,"Janeiro, fevereiro, março      Folha de Ponto de Colaboradores: Diária, Semanal, Mensal, Anual"]
[null,"Janeiro","Semana 1","Horas Extraordinárias","Semana 2","Horas Extraordinárias ","Semana 3","Horas Extraordinárias  ","Semana 4","Horas Extraordinárias   ","Semana 5","Horas Extraordinárias    "]
[null,"Segunda-feira"]
[null,"Terça-feira"]
[null,"Quarta-feira"]
[null,"Quinta-feira"]
[null,"Sexta-feira"]
[null,"Sábado"]
[null,"Domingo"]
[null,"Total de Horas Semanal",{"$f":"SUBTOTAL(109,Janeiro[Semana 1])","v":0},{"$f":"SUBTOTAL(109,Janeiro[Horas Extraordinárias])","v":0},{"$f":"SUBTOTAL(109,Janeiro[Semana 2])","v":0},{"$f":"SUBTOTAL(109,Janeiro[[Horas Extraordinárias ]])","v":0},{"$f":"SUBTOTAL(109,Janeiro[Semana 3])","v":0},{"$f":"SUBTOTAL(109,Janeiro[[Horas Extraordinárias  ]])","v":0},{"$f":"SUBTOTAL(109,Janeiro[Semana 4])","v":0},{"$f":"SUBTOTAL(109,Janeiro[[Horas Extraordinárias   ]])","v":0},{"$f":"SUBTOTAL(109,Janeiro[Semana 5])","v":0},{"$f":"SUBTOTAL(109,Janeiro[[Horas Extraordinárias    ]])","v":0}]
[null,"Total de jan.: Horas de Expediente",{"$f":"SUM(Janeiro[[#Totals],[Semana 1]],Janeiro[[#Totals],[Semana 2]],Janeiro[[#Totals],[Semana 3]],Janeiro[[#Totals],[Semana 4]],Janeiro[[#Totals],[Semana 5]])","v":0},"Total de jan.: Horas Extraordinárias",null,{"$f":"SUM(Janeiro[[#Totals],[Horas Extraordinárias]],Janeiro[[#Totals],[Horas Extraordinárias ]],Janeiro[[#Totals],[Horas Extraordinárias  ]],Janeiro[[#Totals],[Horas Extraordinárias   ]],Janeiro[[#Totals],[Horas Extraordinárias    ]])","v":0}]
[]
[null,"Fevereiro","Semana 1","Horas Extraordinárias","Semana 2","Horas Extraordinárias ","Semana 3","Horas Extraordinárias  ","Semana 4","Horas Extraordinárias   ","Semana 5","Horas Extraordinárias    "]
[null,"Segunda-feira"]
[null,"Terça-feira"]
[null,"Quarta-feira"]
[null,"Quinta-feira"]
[null,"Sexta-feira"]
[null,"Sábado"]
[null,"Domingo"]
[null,"Total de Horas Semanal",{"$f":"SUBTOTAL(109,Fevereiro[Semana 1])","v":0},{"$f":"SUBTOTAL(109,Fevereiro[Horas Extraordinárias])","v":0},{"$f":"SUBTOTAL(109,Fevereiro[Semana 2])","v":0},{"$f":"SUBTOTAL(109,Fevereiro[[Horas Extraordinárias ]])","v":0},{"$f":"SUBTOTAL(109,Fevereiro[Semana 3])","v":0},{"$f":"SUBTOTAL(109,Fevereiro[[Horas Extraordinárias  ]])","v":0},{"$f":"SUBTOTAL(109,Fevereiro[Semana 4])","v":0},{"$f":"SUBTOTAL(109,Fevereiro[[Horas Extraordinárias   ]])","v":0},{"$f":"SUBTOTAL(109,Fevereiro[Semana 5])","v":0},{"$f":"SUBTOTAL(109,Fevereiro[[Horas Extraordinárias    ]])","v":0}]
[null,"Total de fev.: Horas de Expediente",{"$f":"SUM(Fevereiro[[#Totals],[Semana 1]],Fevereiro[[#Totals],[Semana 2]],Fevereiro[[#Totals],[Semana 3]],Fevereiro[[#Totals],[Semana 4]],Fevereiro[[#Totals],[Semana 5]])","v":0},"Total de fev.: Horas Extraordinárias",null,{"$f":"SUM(Fevereiro[[#Totals],[Horas Extraordinárias]],Fevereiro[[#Totals],[Horas Extraordinárias ]],Fevereiro[[#Totals],[Horas Extraordinárias  ]],Fevereiro[[#Totals],[Horas Extraordinárias   ]],Fevereiro[[#Totals],[Horas Extraordinárias    ]])","v":0}]
[]
[null,"Março","Semana 1","Horas Extraordinárias","Semana 2","Horas Extraordinárias ","Semana 3","Horas Extraordinárias  ","Semana 4","Horas Extraordinárias   ","Semana 5","Horas Extraordinárias    "]
[null,"Segunda-feira"]
[null,"Terça-feira"]
[null,"Quarta-feira"]
[null,"Quinta-feira"]
[null,"Sexta-feira"]
[null,"Sábado"]
[null,"Domingo"]
[null,"Total de Horas Semanal",{"$f":"SUBTOTAL(109,Março[Semana 1])","v":0},{"$f":"SUBTOTAL(109,Março[Horas Extraordinárias])","v":0},{"$f":"SUBTOTAL(109,Março[Semana 2])","v":0},{"$f":"SUBTOTAL(109,Março[[Horas Extraordinárias ]])","v":0},{"$f":"SUBTOTAL(109,Março[Semana 3])","v":0},{"$f":"SUBTOTAL(109,Março[[Horas Extraordinárias  ]])","v":0},{"$f":"SUBTOTAL(109,Março[Semana 4])","v":0},{"$f":"SUBTOTAL(109,Março[[Horas Extraordinárias   ]])","v":0},{"$f":"SUBTOTAL(109,Março[Semana 5])","v":0},{"$f":"SUBTOTAL(109,Março[[Horas Extraordinárias    ]])","v":0}]
[null,"Total de mar.: Horas de Expediente",{"$f":"SUM(Março[[#Totals],[Semana 1]],Março[[#Totals],[Semana 2]],Março[[#Totals],[Semana 3]],Março[[#Totals],[Semana 4]],Março[[#Totals],[Semana 5]])","v":0},"Total de mar.: Horas Extraordinárias",null,{"$f":"SUM(Março[[#Totals],[Horas Extraordinárias]],Março[[#Totals],[Horas Extraordinárias ]],Março[[#Totals],[Horas Extraordinárias  ]],Março[[#Totals],[Horas Extraordinárias   ]],Março[[#Totals],[Horas Extraordinárias    ]])","v":0}]
[]
[null,"Abril, maio, junho      : Diária, Semanal, Mensal, Anual"]
[null,"Abril","Semana 1","Horas Extraordinárias","Semana 2","Horas Extraordinárias ","Semana 3","Horas Extraordinárias  ","Semana 4","Horas Extraordinárias   ","Semana 5","Horas Extraordinárias    "]
[null,"Segunda-feira"]
[null,"Terça-feira"]
[null,"Quarta-feira"]
[null,"Quinta-feira"]
[null,"Sexta-feira"]
[null,"Sábado"]
[null,"Domingo"]
[null,"Total de Horas Semanal",{"$f":"SUBTOTAL(109,Abril[Semana 1])","v":0},{"$f":"SUBTOTAL(109,Abril[Horas Extraordinárias])","v":0},{"$f":"SUBTOTAL(109,Abril[Semana 2])","v":0},{"$f":"SUBTOTAL(109,Abril[[Horas Extraordinárias ]])","v":0},{"$f":"SUBTOTAL(109,Abril[Semana 3])","v":0},{"$f":"SUBTOTAL(109,Abril[[Horas Extraordinárias  ]])","v":0},{"$f":"SUBTOTAL(109,Abril[Semana 4])","v":0},{"$f":"SUBTOTAL(109,Abril[[Horas Extraordinárias   ]])","v":0},{"$f":"SUBTOTAL(109,Abril[Semana 5])","v":0},{"$f":"SUBTOTAL(109,Abril[[Horas Extraordinárias    ]])","v":0}]
[null,"Total de abr.: Horas de Expediente",{"$f":"SUM(Abril[[#Totals],[Semana 1]],Abril[[#Totals],[Semana 2]],Abril[[#Totals],[Semana 3]],Abril[[#Totals],[Semana 4]],Abril[[#Totals],[Semana 5]])","v":0},"Total de abr.: Horas Extraordinárias",null,{"$f":"SUM(Abril[[#Totals],[Horas Extraordinárias]],Abril[[#Totals],[Horas Extraordinárias ]],Abril[[#Totals],[Horas Extraordinárias  ]],Abril[[#Totals],[Horas Extraordinárias   ]],Abril[[#Totals],[Horas Extraordinárias    ]])","v":0}]
[]
[null,"Maio","Semana 1","Horas Extraordinárias","Semana 2","Horas Extraordinárias ","Semana 3","Horas Extraordinárias  ","Semana 4","Horas Extraordinárias   ","Semana 5","Horas Extraordinárias    "]
[null,"Segunda-feira"]
[null,"Terça-feira"]
[null,"Quarta-feira"]
[null,"Quinta-feira"]
[null,"Sexta-feira"]
[null,"Sábado"]
[null,"Domingo"]
[null,"Total de Horas Semanal",{"$f":"SUBTOTAL(109,Maio[Semana 1])","v":0},{"$f":"SUBTOTAL(109,Maio[Horas Extraordinárias])","v":0},{"$f":"SUBTOTAL(109,Maio[Semana 2])","v":0},{"$f":"SUBTOTAL(109,Maio[[Horas Extraordinárias ]])","v":0},{"$f":"SUBTOTAL(109,Maio[Semana 3])","v":0},{"$f":"SUBTOTAL(109,Maio[[Horas Extraordinárias  ]])","v":0},{"$f":"SUBTOTAL(109,Maio[Semana 4])","v":0},{"$f":"SUBTOTAL(109,Maio[[Horas Extraordinárias   ]])","v":0},{"$f":"SUBTOTAL(109,Maio[Semana 5])","v":0},{"$f":"SUBTOTAL(109,Maio[[Horas Extraordinárias    ]])","v":0}]
[null,"Total de maio: Horas de Expediente",{"$f":"SUM(Maio[[#Totals],[Semana 1]],Maio[[#Totals],[Semana 2]],Maio[[#Totals],[Semana 3]],Maio[[#Totals],[Semana 4]],Maio[[#Totals],[Semana 5]])","v":0},"Total de maio: Horas Extraordinárias",null,{"$f":"SUM(Maio[[#Totals],[Horas Extraordinárias]],Maio[[#Totals],[Horas Extraordinárias ]],Maio[[#Totals],[Horas Extraordinárias  ]],Maio[[#Totals],[Horas Extraordinárias   ]],Maio[[#Totals],[Horas Extraordinárias    ]])","v":0}]
[]
[null,"Junho","Semana 1","Horas Extraordinárias","Semana 2","Horas Extraordinárias ","Semana 3","Horas Extraordinárias  ","Semana 4","Horas Extraordinárias   ","Semana 5","Horas Extraordinárias    "]
[null,"Segunda-feira"]
[null,"Terça-feira"]
[null,"Quarta-feira"]
[null,"Quinta-feira"]
[null,"Sexta-feira"]
[null,"Sábado"]
[null,"Domingo"]
[null,"Total de Horas Semanal",{"$f":"SUBTOTAL(109,Junho[Semana 1])","v":0},{"$f":"SUBTOTAL(109,Junho[Horas Extraordinárias])","v":0},{"$f":"SUBTOTAL(109,Junho[Semana 2])","v":0},{"$f":"SUBTOTAL(109,Junho[[Horas Extraordinárias ]])","v":0},{"$f":"SUBTOTAL(109,Junho[Semana 3])","v":0},{"$f":"SUBTOTAL(109,Junho[[Horas Extraordinárias  ]])","v":0},{"$f":"SUBTOTAL(109,Junho[Semana 4])","v":0},{"$f":"SUBTOTAL(109,Junho[[Horas Extraordinárias   ]])","v":0},{"$f":"SUBTOTAL(109,Junho[Semana 5])","v":0},{"$f":"SUBTOTAL(109,Junho[[Horas Extraordinárias    ]])","v":0}]
[null,"Total de junho: Horas de Expediente",{"$f":"SUM(Junho[[#Totals],[Semana 1]],Junho[[#Totals],[Semana 2]],Junho[[#Totals],[Semana 3]],Junho[[#Totals],[Semana 4]],Junho[[#Totals],[Semana 5]])","v":0},"Total de junho: Horas Extraordinárias",null,{"$f":"SUM(Junho[[#Totals],[Horas Extraordinárias]],Junho[[#Totals],[Horas Extraordinárias ]],Junho[[#Totals],[Horas Extraordinárias  ]],Junho[[#Totals],[Horas Extraordinárias   ]],Junho[[#Totals],[Horas Extraordinárias    ]])","v":0}]
[]
[null,"Julho, agosto, setembro      : Diária, Semanal, Mensal, Anual"]
[null,"Julho","Semana 1","Horas Extraordinárias","Semana 2","Horas Extraordinárias ","Semana 3","Horas Extraordinárias  ","Semana 4","Horas Extraordinárias   ","Semana 5","Horas Extraordinárias    "]
[null,"Segunda-feira"]
[null,"Terça-feira"]
[null,"Quarta-feira"]
[null,"Quinta-feira"]
[null,"Sexta-feira"]
[null,"Sábado"]
[null,"Domingo"]
[null,"Total de Horas Semanal",{"$f":"SUBTOTAL(109,Julho[Semana 1])","v":0},{"$f":"SUBTOTAL(109,Julho[Horas Extraordinárias])","v":0},{"$f":"SUBTOTAL(109,Julho[Semana 2])","v":0},{"$f":"SUBTOTAL(109,Julho[[Horas Extraordinárias ]])","v":0},{"$f":"SUBTOTAL(109,Julho[Semana 3])","v":0},{"$f":"SUBTOTAL(109,Julho[[Horas Extraordinárias  ]])","v":0},{"$f":"SUBTOTAL(109,Julho[Semana 4])","v":0},{"$f":"SUBTOTAL(109,Julho[[Horas Extraordinárias   ]])","v":0},{"$f":"SUBTOTAL(109,Julho[Semana 5])","v":0},{"$f":"SUBTOTAL(109,Julho[[Horas Extraordinárias    ]])","v":0}]
[null,"Total de julho: Horas de Expediente",{"$f":"SUM(Julho[[#Totals],[Semana 1]],Julho[[#Totals],[Semana 2]],Julho[[#Totals],[Semana 3]],Julho[[#Totals],[Semana 4]],Julho[[#Totals],[Semana 5]])","v":0},"Total de julho: Horas Extraordinárias",null,{"$f":"SUM(Julho[[#Totals],[Horas Extraordinárias]],Julho[[#Totals],[Horas Extraordinárias ]],Julho[[#Totals],[Horas Extraordinárias  ]],Julho[[#Totals],[Horas Extraordinárias   ]],Julho[[#Totals],[Horas Extraordinárias    ]])","v":0}]
[]
[null,"Agosto","Semana 1","Horas Extraordinárias","Semana 2","Horas Extraordinárias ","Semana 3","Horas Extraordinárias  ","Semana 4","Horas Extraordinárias   ","Semana 5","Horas Extraordinárias    "]
[null,"Segunda-feira"]
[null,"Terça-feira"]
[null,"Quarta-feira"]
[null,"Quinta-feira"]
[null,"Sexta-feira"]
[null,"Sábado"]
[null,"Domingo"]
[null,"Total de Horas Semanal",{"$f":"SUBTOTAL(109,Agosto[Semana 1])","v":0},{"$f":"SUBTOTAL(109,Agosto[Horas Extraordinárias])","v":0},{"$f":"SUBTOTAL(109,Agosto[Semana 2])","v":0},{"$f":"SUBTOTAL(109,Agosto[[Horas Extraordinárias ]])","v":0},{"$f":"SUBTOTAL(109,Agosto[Semana 3])","v":0},{"$f":"SUBTOTAL(109,Agosto[[Horas Extraordinárias  ]])","v":0},{"$f":"SUBTOTAL(109,Agosto[Semana 4])","v":0},{"$f":"SUBTOTAL(109,Agosto[[Horas Extraordinárias   ]])","v":0},{"$f":"SUBTOTAL(109,Agosto[Semana 5])","v":0},{"$f":"SUBTOTAL(109,Agosto[[Horas Extraordinárias    ]])","v":0}]
[null,"Total de ago.: Horas de Expediente",{"$f":"SUM(Agosto[[#Totals],[Semana 1]],Agosto[[#Totals],[Semana 2]],Agosto[[#Totals],[Semana 3]],Agosto[[#Totals],[Semana 4]],Agosto[[#Totals],[Semana 5]])","v":0},"Total de ago.: Horas Extraordinárias",null,{"$f":"SUM(Agosto[[#Totals],[Horas Extraordinárias]],Agosto[[#Totals],[Horas Extraordinárias ]],Agosto[[#Totals],[Horas Extraordinárias  ]],Agosto[[#Totals],[Horas Extraordinárias   ]],Agosto[[#Totals],[Horas Extraordinárias    ]])","v":0}]
[]
[null,"Setembro","Semana 1","Horas Extraordinárias","Semana 2","Horas Extraordinárias ","Semana 3","Horas Extraordinárias  ","Semana 4","Horas Extraordinárias   ","Semana 5","Horas Extraordinárias    "]
[null,"Segunda-feira"]
[null,"Terça-feira"]
[null,"Quarta-feira"]
[null,"Quinta-feira"]
[null,"Sexta-feira"]
[null,"Sábado"]
[null,"Domingo"]
[null,"Total de Horas Semanal",{"$f":"SUBTOTAL(109,Setembro[Semana 1])","v":0},{"$f":"SUBTOTAL(109,Setembro[Horas Extraordinárias])","v":0},{"$f":"SUBTOTAL(109,Setembro[Semana 2])","v":0},{"$f":"SUBTOTAL(109,Setembro[[Horas Extraordinárias ]])","v":0},{"$f":"SUBTOTAL(109,Setembro[Semana 3])","v":0},{"$f":"SUBTOTAL(109,Setembro[[Horas Extraordinárias  ]])","v":0},{"$f":"SUBTOTAL(109,Setembro[Semana 4])","v":0},{"$f":"SUBTOTAL(109,Setembro[[Horas Extraordinárias   ]])","v":0},{"$f":"SUBTOTAL(109,Setembro[Semana 5])","v":0},{"$f":"SUBTOTAL(109,Setembro[[Horas Extraordinárias    ]])","v":0}]
[null,"Total de set.: Horas de Expediente",{"$f":"SUM(Setembro[[#Totals],[Semana 1]],Setembro[[#Totals],[Semana 2]],Setembro[[#Totals],[Semana 3]],Setembro[[#Totals],[Semana 4]],Setembro[[#Totals],[Semana 5]])","v":0},"Total de set.: Horas Extraordinárias",null,{"$f":"SUM(Setembro[[#Totals],[Horas Extraordinárias]],Setembro[[#Totals],[Horas Extraordinárias ]],Setembro[[#Totals],[Horas Extraordinárias  ]],Setembro[[#Totals],[Horas Extraordinárias   ]],Setembro[[#Totals],[Horas Extraordinárias    ]])","v":0}]
[]
[null,"Outubro, novembro, dezembro      Folha de Ponto de Colaboradores: Diária, Semanal, Mensal, Anual"]
[null,"Outubro","Semana 1","Horas Extraordinárias","Semana 2","Horas Extraordinárias ","Semana 3","Horas Extraordinárias  ","Semana 4","Horas Extraordinárias   ","Semana 5","Horas Extraordinárias    "]
[null,"Segunda-feira"]
[null,"Terça-feira"]
[null,"Quarta-feira"]
[null,"Quinta-feira"]
[null,"Sexta-feira"]
[null,"Sábado"]
[null,"Domingo"]
[null,"Total de Horas Semanal",{"$f":"SUBTOTAL(109,Outubro[Semana 1])","v":0},{"$f":"SUBTOTAL(109,Outubro[Horas Extraordinárias])","v":0},{"$f":"SUBTOTAL(109,Outubro[Semana 2])","v":0},{"$f":"SUBTOTAL(109,Outubro[[Horas Extraordinárias ]])","v":0},{"$f":"SUBTOTAL(109,Outubro[Semana 3])","v":0},{"$f":"SUBTOTAL(109,Outubro[[Horas Extraordinárias  ]])","v":0},{"$f":"SUBTOTAL(109,Outubro[Semana 4])","v":0},{"$f":"SUBTOTAL(109,Outubro[[Horas Extraordinárias   ]])","v":0},{"$f":"SUBTOTAL(109,Outubro[Semana 5])","v":0},{"$f":"SUBTOTAL(109,Outubro[[Horas Extraordinárias    ]])","v":0}]
[null,"Total de out.: Horas de Expediente",{"$f":"SUM(Outubro[[#Totals],[Semana 1]],Outubro[[#Totals],[Semana 2]],Outubro[[#Totals],[Semana 3]],Outubro[[#Totals],[Semana 4]],Outubro[[#Totals],[Semana 5]])","v":0},"Total de out.: Horas Extraordinárias",null,{"$f":"SUM(Outubro[[#Totals],[Horas Extraordinárias]],Outubro[[#Totals],[Horas Extraordinárias ]],Outubro[[#Totals],[Horas Extraordinárias  ]],Outubro[[#Totals],[Horas Extraordinárias   ]],Outubro[[#Totals],[Horas Extraordinárias    ]])","v":0}]
[]
[null,"Novembro","Semana 1","Horas Extraordinárias","Semana 2","Horas Extraordinárias ","Semana 3","Horas Extraordinárias  ","Semana 4","Horas Extraordinárias   ","Semana 5","Horas Extraordinárias    "]
[null,"Segunda-feira"]
[null,"Terça-feira"]
[null,"Quarta-feira"]
[null,"Quinta-feira"]
[null,"Sexta-feira"]
[null,"Sábado"]
[null,"Domingo"]
[null,"Total de Horas Semanal",{"$f":"SUBTOTAL(109,Novembro[Semana 1])","v":0},{"$f":"SUBTOTAL(109,Novembro[Horas Extraordinárias])","v":0},{"$f":"SUBTOTAL(109,Novembro[Semana 2])","v":0},{"$f":"SUBTOTAL(109,Novembro[[Horas Extraordinárias ]])","v":0},{"$f":"SUBTOTAL(109,Novembro[Semana 3])","v":0},{"$f":"SUBTOTAL(109,Novembro[[Horas Extraordinárias  ]])","v":0},{"$f":"SUBTOTAL(109,Novembro[Semana 4])","v":0},{"$f":"SUBTOTAL(109,Novembro[[Horas Extraordinárias   ]])","v":0},{"$f":"SUBTOTAL(109,Novembro[Semana 5])","v":0},{"$f":"SUBTOTAL(109,Novembro[[Horas Extraordinárias    ]])","v":0}]
[null,"Total de nov.: Horas de Expediente",{"$f":"SUM(Novembro[[#Totals],[Semana 1]],Novembro[[#Totals],[Semana 2]],Novembro[[#Totals],[Semana 3]],Novembro[[#Totals],[Semana 4]],Novembro[[#Totals],[Semana 5]])","v":0},"Total de nov.: Horas Extraordinárias",null,{"$f":"SUM(Novembro[[#Totals],[Horas Extraordinárias]],Novembro[[#Totals],[Horas Extraordinárias ]],Novembro[[#Totals],[Horas Extraordinárias  ]],Novembro[[#Totals],[Horas Extraordinárias   ]],Novembro[[#Totals],[Horas Extraordinárias    ]])","v":0}]
[]
[null,"Dezembro","Semana 1","Horas Extraordinárias","Semana 2","Horas Extraordinárias ","Semana 3","Horas Extraordinárias  ","Semana 4","Horas Extraordinárias   ","Semana 5","Horas Extraordinárias    "]
[null,"Segunda-feira"]
[null,"Terça-feira"]
[null,"Quarta-feira"]
[null,"Quinta-feira"]
[null,"Sexta-feira"]
[null,"Sábado"]
[null,"Domingo"]
[null,"Total de Horas Semanal",{"$f":"SUBTOTAL(109,Dezembro[Semana 1])","v":0},{"$f":"SUBTOTAL(109,Dezembro[Horas Extraordinárias])","v":0},{"$f":"SUBTOTAL(105,Dezembro[Semana 2])","v":0},{"$f":"SUBTOTAL(109,Dezembro[[Horas Extraordinárias ]])","v":0},{"$f":"SUBTOTAL(109,Dezembro[Semana 3])","v":0},{"$f":"SUBTOTAL(109,Dezembro[[Horas Extraordinárias  ]])","v":0},{"$f":"SUBTOTAL(109,Dezembro[Semana 4])","v":0},{"$f":"SUBTOTAL(109,Dezembro[[Horas Extraordinárias   ]])","v":0},{"$f":"SUBTOTAL(109,Dezembro[Semana 5])","v":0},{"$f":"SUBTOTAL(109,Dezembro[[Horas Extraordinárias    ]])","v":0}]
[null,"Total de dez.: Horas de Expediente",{"$f":"SUM(Dezembro[[#Totals],[Semana 1]],Dezembro[[#Totals],[Semana 2]],Dezembro[[#Totals],[Semana 3]],Dezembro[[#Totals],[Semana 4]],Dezembro[[#Totals],[Semana 5]])","v":0},"Total de dez.: Horas Extraordinárias",null,{"$f":"SUM(Dezembro[[#Totals],[Horas Extraordinárias]],Dezembro[[#Totals],[Horas Extraordinárias ]],Dezembro[[#Totals],[Horas Extraordinárias  ]],Dezembro[[#Totals],[Horas Extraordinárias   ]],Dezembro[[#Totals],[Horas Extraordinárias    ]])","v":0}]